fUST/lending_fUST_20250627
["ID","MTS","AMOUNT","RATE_DAILY","PERIOD"]
[367998093,1750989036418,-460.0,0.00020078,2]
[367998094,1750989036427,-460.0,0.00020078,2]
[367998095,1750989036438,-460.0,0.00020079,2]
[367998096,1750989036448,-460.0,0.00020079,2]
[367998097,1750989036458,-460.0,0.00020079,2]
[367998098,1750989036470,-460.0,0.00020079,2]
[367998099,1750989036480,-664.2,0.00020079,2]
[367998100,1750989036490,-500.13,0.00020079,2]
[367998101,1750989036500,-460.0,0.00020079,2]
[367998102,1750989036510,-176.13451279,0.00020079,2]
[367998103,1750989036520,-151.0,0.00020079,2]
[367998104,1750989036530,-460.0,0.00020079,2]
[367998105,1750989036543,-460.0,0.00020079,2]
[367998106,1750989036553,-472.16,0.00020079,2]
[367998107,1750989036562,-460.0,0.00020079,2]
[367998108,1750989036572,-460.0,0.00020079,2]
[367998109,1750989036582,-460.0,0.00020079,2]
[367998110,1750989036591,-494.7,0.00020079,2]
[367998111,1750989036602,-195.52123,0.00020079,2]
[367998112,1750989036612,-152.731999,0.00020079,2]
[367998113,1750989036622,-195.52123,0.00020079,2]
[367998114,1750989036632,-460.0,0.00020079,2]
[367998115,1750989036641,-460.0,0.00020079,2]
[367998116,1750989036650,-460.0,0.00020079,2]
[367998117,1750989036660,-574.63,0.00020079,2]
[367998118,1750989036670,-460.0,0.00020079,2]
[367998119,1750989036680,-788.31,0.00020079,2]
[367998120,1750989036690,-460.0,0.00020079,2]
[367998121,1750989036699,-800.34,0.00020079,2]
[367998122,1750989036708,-463.32,0.00020079,2]
[367998123,1750989036718,-460.0,0.00020079,2]
[367998124,1750989036727,-1048.54,0.00020079,2]
[367998125,1750989036736,-862.03,0.00020079,2]
[367998126,1750989036745,-1407.067641,0.00020079,2]
[367998127,1750989036755,-560.05,0.00020079,2]
[367998128,1750989036764,-1407.067641,0.00020079,2]
[367998129,1750989036773,-740.86,0.00020079,2]
[367998130,1750989036784,-1344.07,0.00020079,2]
[367998131,1750989036793,-485.50382817,0.00020079,2]
[367998132,1750989036802,-460.0,0.00020079,2]
[367998133,1750989036811,-460.0,0.00020079,2]
[367998134,1750989036820,-979.43,0.00020079,2]
[367998135,1750989036830,-895.41,0.00020079,2]
[367998136,1750989036839,-460.0,0.00020079,2]
[367998137,1750989036848,-745.27,0.00020079,2]
[367998138,1750989036858,-460.0,0.00020079,2]
[367998139,1750989036867,-460.0,0.00020079,2]
[367998140,1750989036877,-843.89,0.00020079,2]
[367998141,1750989036886,-691.76,0.00020079,2]
[367998142,1750989036895,-460.0,0.00020079,2]
[367998143,1750989036905,-506.39,0.00020079,2]
[367998144,1750989036914,-460.0,0.00020079,2]
[367998145,1750989036923,-151.0,0.00020079,2]
[367998146,1750989036932,-1172.74,0.00020079,2]
[367998147,1750989036941,-460.0,0.00020079,2]
[367998148,1750989036951,-500.76,0.0002008,2]
[367998149,1750989036960,-151.593108,0.0002008,2]
[367998150,1750989036969,-151.0,0.0002008,2]
[367998151,1750989036978,-152.779896,0.0002008,2]
[367998152,1750989036987,-151.0,0.0002008,2]
[367998153,1750989036996,-153.560362,0.0002008,2]
[367998154,1750989037009,-151.0,0.0002008,2]
[367998155,1750989037018,-156.56947,0.0002008,2]
[367998156,1750989037027,-151.0,0.0002008,2]
[367998157,1750989037036,-197.376706,0.0002008,2]
[367998158,1750989037045,-296.798375,0.0002008,2]
[367998159,1750989037055,-197.376706,0.0002008,2]
[367998160,1750989037064,-151.0,0.0002008,2]
[367998161,1750989037073,-151.0,0.0002008,2]
[367998162,1750989037082,-151.0,0.0002008,2]
[367998163,1750989037091,-151.0,0.0002008,2]
[367998164,1750989037101,-151.0,0.0002008,2]
[367998165,1750989037110,-608.54544,0.0002008,2]
[367998166,1750989037120,-608.54544,0.0002008,2]
[367998167,1750989037129,-460.0,0.0002008,2]
[367998168,1750989037138,-503.17,0.0002008,2]
[367998169,1750989037148,-565.36,0.0002008,2]
[367998170,1750989037158,-5304.87,0.0002008,2]
[367998171,1750989037167,-477.31268619,0.0002008,2]
[367998172,1750989037177,-569.04,0.0002008,2]
[367998173,1750989037187,-1077.24,0.0002008,2]
[367998174,1750989037197,-460.0,0.0002008,2]
[367998175,1750989037207,-460.0,0.0002008,2]
[367998176,1750989037216,-850.44,0.0002008,2]
[367998177,1750989037225,-2075.5,0.0002008,2]
[367998178,1750989037234,-1081.62,0.0002008,2]
[367998179,1750989037243,-151.0,0.0002008,2]
[367998180,1750989037253,-913.67,0.0002008,2]
[367998181,1750989037262,-460.0,0.0002008,2]
[367998182,1750989037271,-460.0,0.00020081,2]
[367998183,1750989037280,-460.0,0.00020081,2]
[367998184,1750989037290,-460.0,0.00020081,2]
[367998185,1750989037299,-460.0,0.00020081,2]
[367998186,1750989037313,-470.67090918,0.00020081,2]
[367998187,1750989037322,-460.0,0.00020081,2]
[367998188,1750989037332,-460.0,0.00020081,2]
[367998189,1750989037342,-460.0,0.00020081,2]
[367998190,1750989037351,-460.0,0.00020081,2]
[367998191,1750989037361,-460.0,0.00020081,2]
[367998192,1750989037370,-151.0,0.00020081,2]
[367998193,1750989037380,-460.0,0.00020081,2]
[367998194,1750989037389,-151.0,0.00020081,2]
[367998195,1750989037398,-151.0,0.00020081,2]
[367998196,1750989037408,-460.0,0.00020081,2]
[367998197,1750989037417,-460.0,0.00020081,2]
[367998198,1750989037427,-467.38209134,0.00020081,2]
[367998199,1750989037437,-460.0,0.00020081,2]
[367998200,1750989037446,-460.0,0.00020081,2]
[367998201,1750989037456,-460.0,0.00020081,2]
[367998202,1750989037468,-624.06,0.00020081,2]
[367998203,1750989037478,-460.0,0.00020081,2]
[367998204,1750989037487,-580.09,0.00020081,2]
[367998205,1750989037496,-460.0,0.00020081,2]
[367998206,1750989037506,-151.0,0.00020081,2]
[367998207,1750989037515,-536.28185623,0.00020081,2]
[367998208,1750989037525,-898.76,0.00020081,2]
[367998209,1750989037535,-601.84,0.00020081,2]
[367998210,1750989037544,-460.0,0.00020081,2]
[367998211,1750989037554,-687.03,0.00020081,2]
[367998212,1750989037563,-463.8,0.00020081,2]
[367998213,1750989037573,-460.0,0.00020081,2]
[367998214,1750989037582,-460.0,0.00020081,2]
[367998215,1750989037591,-460.0,0.00020081,2]
[367998216,1750989037601,-630.25,0.00020081,2]
[367998217,1750989037610,-460.0,0.00020081,2]
[367998218,1750989037619,-460.0,0.00020081,2]
[367998219,1750989037628,-460.0,0.00020081,2]
[367998220,1750989037638,-717.1,0.00020081,2]
[367998222,1750989037647,-460.0,0.00020081,2]
[367998223,1750989037657,-229.299007,0.00020081,2]
[367998224,1750989037666,-229.299007,0.00020081,2]
[367998225,1750989037676,-883.49,0.00020081,2]
[367998227,1750989037686,-460.0,0.00020081,2]
[367998228,1750989037695,-460.0,0.00020081,2]
[367998229,1750989037704,-463.01629358,0.00020081,2]
[367998230,1750989037713,-460.0,0.00020081,2]
[367998231,1750989037722,-460.0,0.00020081,2]
[367998233,1750989037731,-460.0,0.00020081,2]
[367998235,1750989037740,-460.0,0.00020081,2]
[367998237,1750989037750,-229.87342198,0.00020081,2]
[367998239,1750989037759,-652.23,0.00020081,2]
[367998242,1750989037769,-460.0,0.00020081,2]
[367998244,1750989037778,-460.0,0.00020081,2]
[367998246,1750989037788,-728.81,0.00020081,2]
[367998249,1750989037798,-460.0,0.00020081,2]
[367998250,1750989037807,-1190.85,0.00020081,2]
[367998253,1750989037817,-460.0,0.00020081,2]
[367998254,1750989037826,-460.0,0.00020081,2]
[367998257,1750989037836,-687.22,0.00020081,2]
[367998258,1750989037845,-460.0,0.00020081,2]
[367998260,1750989037854,-151.0,0.00020081,2]
[367998262,1750989037863,-460.0,0.00020081,2]
[367998264,1750989037873,-669.92,0.00020081,2]
[367998265,1750989037882,-460.0,0.00020081,2]
[367998266,1750989037891,-1077.08,0.00020081,2]
[367998267,1750989037900,-493.99,0.00020081,2]
[367998268,1750989037910,-460.0,0.00020081,2]
[367998269,1750989037919,-452.20284422,0.00020081,2]
[367998270,1750989037929,-161.467374,0.00020081,2]
[367998271,1750989037938,-161.467374,0.00020081,2]
[367998272,1750989037948,-460.0,0.00020081,2]
[367998273,1750989037957,-460.0,0.00020081,2]
[367998274,1750989037967,-215.29695175,0.00020081,2]
[367998275,1750989037977,-460.0,0.00020081,2]
[367998276,1750989037987,-460.0,0.00020081,2]
[367998277,1750989037997,-1386.2,0.00020081,2]
[367998278,1750989038009,-646.42,0.00020081,2]
[367998279,1750989038019,-460.0,0.00020081,2]
[367998280,1750989038028,-151.851896,0.00020082,2]
[367998281,1750989038038,-151.0,0.00020082,2]
[367998282,1750989038047,-151.0,0.00020082,2]
[367998283,1750989038057,-151.0,0.00020082,2]
[367998284,1750989038066,-151.0,0.00020082,2]
[367998285,1750989038076,-151.0,0.00020082,2]
[367998286,1750989038086,-222.032485,0.00020082,2]
[367998287,1750989038094,-222.032485,0.00020082,2]
[367998288,1750989038103,-154.493353,0.00020082,2]
[367998289,1750989038112,-195.52123,0.00020082,2]
[367998290,1750989038121,-195.52123,0.00020082,2]
[367998291,1750989038131,-1407.067641,0.00020082,2]
[367998292,1750989038140,-1407.067641,0.00020082,2]
[367998293,1750989038150,-151.0,0.00020082,2]
[367998294,1750989038159,-151.0,0.00020084,2]
[367998295,1750989038169,-163.872475,0.00020084,2]
[367998296,1750989038178,-151.0,0.00020084,2]
[367998297,1750989038187,-151.0,0.00020084,2]
[367998298,1750989038196,-460.0,0.00020084,2]
[367998299,1750989038206,-460.0,0.00020084,2]
[367998300,1750989038215,-466.23953268,0.00020084,2]
[367998301,1750989038224,-151.452655,0.00020085,2]
[367998302,1750989038233,-154.1967,0.00020085,2]
[367998303,1750989038243,-217.379747,0.00020085,2]
[367998304,1750989038252,-154.886267,0.00020085,2]
[367998305,1750989038261,-151.0,0.00020085,2]
[367998306,1750989038270,-197.376706,0.00020085,2]
[367998307,1750989038279,-197.376706,0.00020085,2]
[367998308,1750989038288,-151.0,0.00020085,2]
[367998309,1750989038298,-168.0,0.000201,2]
[367998310,1750989038307,-151.0,0.000201,3]
[367998311,1750989038317,-7363.35940528,0.00020107,2]
[367998312,1750989038326,-151.0,0.00020107,2]
[367998313,1750989038335,-151.0,0.00020107,2]
[367998314,1750989038345,-151.0,0.00020107,2]
[367998315,1750989038355,-608.54544,0.00020107,2]
[367998316,1750989038364,-608.54544,0.00020107,2]
[367998317,1750989038375,-151.0,0.00020107,2]
[367998318,1750989038385,-324.0,0.00020138,2]
[367998319,1750989038395,-511.07358669,0.00020159,2]
[367998320,1750989038405,-500.0,0.00020159,2]
[367998321,1750989038414,-460.0,0.00020185,2]
[367998322,1750989038561,-519.18613031,0.00020185,2]
[367998323,1750989038572,-473.37570487,0.00020185,2]
[367998324,1750989038582,-151.0,0.00020185,2]
[367998325,1750989038591,-151.0,0.00020185,2]
[367998326,1750989038600,-151.0,0.00020185,2]
[367998327,1750989038610,-460.0,0.00020185,2]
[367998328,1750989038619,-2761.15,0.00020185,2]
[367998329,1750989038628,-158.90170595,0.00020185,2]
[367998330,1750989038638,-665.43,0.00020185,2]
[367998331,1750989038648,-1688.09,0.00020185,2]
[367998332,1750989038657,-460.0,0.00020185,2]
[367998333,1750989038666,-5139.36,0.00020185,2]
[367998334,1750989038675,-1717.62,0.00020185,2]
[367998335,1750989038684,-460.0,0.00020185,2]
[367998336,1750989038694,-183.374458,0.00020188,2]
[367998337,1750989038703,-86739.82975109,0.00020207,2]
[367998338,1750989038856,-36683.50341438,0.00020207,2]
[367998339,1750989038869,-26143.19921453,0.00020207,2]
[367998340,1750989038879,-485.62165416,0.00020208,2]
[367998341,1750989038888,-460.0,0.00020257,2]
[367998342,1750989038897,-300.62512842,0.00020257,2]
[367998343,1750989038908,-460.0,0.00020257,2]
[367998344,1750989038917,-460.0,0.00020273,2]
[367998345,1750989038926,-485.61,0.00020273,2]
[367998346,1750989038936,-515.69,0.00020273,2]
[367998347,1750989038945,-682.25,0.00020273,2]
[367998348,1750989038955,-460.0,0.00020273,2]
[367998349,1750989038964,-592.74,0.00020273,2]
[367998350,1750989038974,-593.33262537,0.00020273,2]
[367998351,1750989038984,-2435.99,0.00020273,2]
[367998352,1750989038993,-460.0,0.00020273,2]
[367998353,1750989039002,-598.45734738,0.00020273,2]
[367998354,1750989039012,-2999.72,0.00020273,2]
[367998355,1750989039022,-168.0,0.00020277,2]
[367998356,1750989039032,-168.0,0.00020279,2]
[367998357,1750989039041,-151.0,0.000203,4]
[367998358,1750989039051,-6869.97426597,0.00020314,3]
[367998359,1750989039061,-7363.35940528,0.00020314,3]
[367998360,1750989039069,-151.0,0.00020314,2]
[367998361,1750989039078,-151.0,0.00020314,2]
[367998362,1750989039087,-229.299007,0.00020314,2]
[367998363,1750989039097,-229.299007,0.00020314,2]
[367998364,1750989039106,-151.0,0.00020314,2]
[367998365,1750989039115,-500.0,0.00020329,2]
[367998366,1750989039123,-527.36960816,0.00020329,2]
[367998367,1750989039133,-500.67557092,0.00020329,2]
[367998368,1750989039142,-501.18017743,0.00020329,2]
[367998369,1750989039151,-502.28234429,0.00020329,2]
[367998370,1750989039160,-500.0,0.00020329,2]
[367998371,1750989039170,-503.19741695,0.00020329,2]
[367998372,1750989039180,-951.43772022,0.00020333,2]
[367998373,1750989039191,-8875.36237928,0.00020338,2]
[367998374,1750989039200,-12853.06933519,0.00020338,2]
[367998375,1750989039209,-500.0,0.00020338,2]
[367998376,1750989039218,-5074.90286527,0.00020338,2]
[367998377,1750989039227,-441.54900924,0.00020338,2]
[367998378,1750989039237,-8524.54057512,0.00020338,2]
[367998379,1750989039246,-207.4,0.00020338,2]
[367998380,1750989039255,-152.577685,0.00020338,2]
[367998381,1750989039264,-151.0,0.00020338,2]
[367998382,1750989039273,-222.032485,0.00020338,2]
[367998383,1750989039283,-222.032485,0.00020338,2]
[367998384,1750989039292,-151.0,0.00020338,2]
[367998385,1750989039302,-161.467374,0.00020338,2]
[367998386,1750989039311,-161.467374,0.00020338,2]
[367998387,1750989039321,-460.0,0.00020351,2]
[367998388,1750989039330,-460.0,0.00020351,2]
[367998389,1750989039339,-460.0,0.00020351,2]
[367998390,1750989039349,-1061.16,0.00020351,2]
[367998391,1750989039359,-2254.67,0.00020351,2]
[367998392,1750989039368,-597.41,0.00020351,2]
[367998393,1750989039377,-677.51,0.00020351,2]
[367998394,1750989039387,-895.49,0.00020351,2]
[367998395,1750989039396,-2323.68,0.00020351,2]
[367998396,1750989039406,-2000.89,0.00020351,2]
[367998397,1750989039415,-594.98,0.00020351,2]
[367998398,1750989039424,-460.0,0.00020351,2]
[367998399,1750989039434,-1696.3,0.00020351,2]
[367998400,1750989039443,-810.43,0.00020351,2]
[367998401,1750989039453,-994.27,0.00020351,2]
[367998402,1750989039465,-460.0,0.00020351,2]
[367998403,1750989039475,-253.73617264,0.00020351,2]
[367998404,1750989039485,-359.30184537,0.00020351,2]
[367998405,1750989039497,-252.3,0.00020351,2]
[367998406,1750989039509,-411.74815463,0.00020351,2]
[367998407,1750989039518,-686.32,0.00020351,2]
[367998408,1750989039528,-460.0,0.00020351,2]
[367998409,1750989039538,-460.0,0.00020352,2]
[367998410,1750989039547,-460.0,0.00020352,2]
[367998411,1750989039557,-460.0,0.00020353,2]
[367998412,1750989039566,-460.0,0.00020353,2]
[367998413,1750989039576,-460.0,0.00020353,2]
[367998414,1750989039585,-460.0,0.00020353,2]
[367998415,1750989039595,-664.2,0.00020353,2]
[367998416,1750989039605,-500.13,0.00020353,2]
[367998417,1750989039614,-468.3575012,0.00020353,2]
[367998418,1750989039624,-460.0,0.00020353,2]
[367998419,1750989039634,-460.0,0.00020353,2]
[367998420,1750989039643,-472.16,0.00020353,2]
[367998421,1750989039653,-306.53637213,0.00020353,2]
[367998422,1750989039663,-460.0,0.00020353,2]
[367998423,1750989039672,-460.0,0.00020353,2]
[367998424,1750989039682,-494.7,0.00020353,2]
[367998425,1750989039691,-460.0,0.00020353,2]
[367998426,1750989039701,-460.0,0.00020353,2]
[367998427,1750989039710,-458.72455942,0.00020353,2]
[367998428,1750989039720,-574.63,0.00020353,2]
[367998429,1750989039729,-474.3158401,0.00020353,2]
[367998431,1750989039738,-788.31,0.00020353,2]
[367998433,1750989039747,-460.0,0.00020353,2]
[367998435,1750989039757,-800.34,0.00020353,2]
[367998437,1750989039766,-463.32,0.00020353,2]
[367998439,1750989039775,-460.0,0.00020353,2]
[367998440,1750989039784,-1048.54,0.00020353,2]
[367998442,1750989039794,-862.03,0.00020353,2]
[367998444,1750989039803,-560.05,0.00020353,2]
[367998446,1750989039812,-740.86,0.00020353,2]
[367998448,1750989039821,-1344.07,0.00020353,2]
[367998450,1750989039830,-460.0,0.00020353,2]
[367998452,1750989039839,-217.27064409,0.00020353,2]
[367998453,1750989039848,-979.43,0.00020353,2]
[367998454,1750989039857,-895.41,0.00020353,2]
[367998455,1750989039866,-460.0,0.00020353,2]
[367998457,1750989039876,-745.27,0.00020353,2]
[367998459,1750989039885,-460.0,0.00020353,2]
[367998460,1750989039894,-460.0,0.00020353,2]
[367998461,1750989039904,-843.89,0.00020353,2]
[367998462,1750989039914,-691.76,0.00020353,2]
[367998463,1750989039923,-460.0,0.00020353,2]
[367998464,1750989039933,-151.0,0.00020353,2]
[367998465,1750989039942,-506.39,0.00020353,2]
[367998467,1750989039951,-460.0,0.00020353,2]
[367998469,1750989039960,-1172.74,0.00020353,2]
[367998471,1750989039969,-460.0,0.00020353,2]
[367998473,1750989039979,-500.76,0.00020354,2]
[367998475,1750989039989,-195.52123,0.00020354,2]
[367998477,1750989039999,-195.52123,0.00020354,2]
[367998479,1750989040008,-460.0,0.00020354,2]
[367998481,1750989040018,-503.17,0.00020354,2]
[367998483,1750989040026,-565.36,0.00020354,2]
[367998485,1750989040035,-5304.87,0.00020354,2]
[367998487,1750989040045,-1407.067641,0.00020354,2]
[367998489,1750989040054,-1407.067641,0.00020354,2]
[367998491,1750989040063,-569.04,0.00020354,2]
[367998493,1750989040073,-1077.24,0.00020354,2]
[367998495,1750989040082,-460.0,0.00020354,2]
[367998497,1750989040091,-230.13532855,0.00020354,2]
[367998499,1750989040101,-850.44,0.00020354,2]
[367998501,1750989040110,-2075.5,0.00020354,2]
[367998503,1750989040119,-1081.62,0.00020354,2]
[367998505,1750989040128,-913.67,0.00020354,2]
[367998507,1750989040138,-460.0,0.00020354,2]
[367998509,1750989040147,-460.0,0.00020355,2]
[367998511,1750989040156,-460.0,0.00020355,2]
[367998513,1750989040165,-468.55667559,0.00020355,2]
[367998515,1750989040175,-460.0,0.00020355,2]
[367998517,1750989040183,-460.0,0.00020355,2]
[367998519,1750989040193,-460.0,0.00020355,2]
[367998521,1750989040202,-460.0,0.00020355,2]
[367998523,1750989040211,-151.0,0.00020355,2]
[367998525,1750989040221,-460.0,0.00020355,2]
[367998527,1750989040230,-460.0,0.00020355,2]
[367998529,1750989040239,-460.0,0.00020355,2]
[367998531,1750989040248,-460.0,0.00020355,2]
[367998533,1750989040257,-466.50875246,0.00020355,2]
[367998535,1750989040266,-460.0,0.00020355,2]
[367998537,1750989040276,-460.0,0.00020355,2]
[367998539,1750989040285,-460.0,0.00020355,2]
[367998541,1750989040295,-624.06,0.00020355,2]
[367998543,1750989040305,-460.0,0.00020355,2]
[367998545,1750989040315,-580.09,0.00020355,2]
[367998547,1750989040324,-460.0,0.00020355,2]
[367998549,1750989040333,-898.76,0.00020355,2]
[367998551,1750989040343,-601.84,0.00020355,2]
[367998553,1750989040352,-460.0,0.00020355,2]
[367998555,1750989040362,-687.03,0.00020355,2]
[367998557,1750989040371,-467.79102551,0.00020355,2]
[367998559,1750989040380,-463.8,0.00020355,2]
[367998561,1750989040389,-460.0,0.00020355,2]
[367998563,1750989040398,-460.0,0.00020355,2]
[367998565,1750989040408,-630.25,0.00020355,2]
[367998567,1750989040418,-460.0,0.00020355,2]
[367998569,1750989040427,-460.0,0.00020355,2]
[367998571,1750989040437,-460.0,0.00020355,2]
[367998573,1750989040446,-717.1,0.00020355,2]
[367998575,1750989040455,-460.0,0.00020355,2]
[367998577,1750989040469,-883.49,0.00020355,2]
[367998579,1750989040478,-460.0,0.00020355,2]
[367998581,1750989040488,-460.0,0.00020355,2]
[367998583,1750989040497,-460.0,0.00020355,2]
[367998585,1750989040506,-460.0,0.00020355,2]
[367998587,1750989040515,-460.0,0.00020355,2]
[367998589,1750989040525,-460.0,0.00020355,2]
[367998591,1750989040534,-652.23,0.00020355,2]
[367998593,1750989040545,-460.0,0.00020355,2]
[367998595,1750989040555,-460.0,0.00020355,2]
[367998597,1750989040564,-728.81,0.00020355,2]
[367998599,1750989040574,-460.0,0.00020355,2]
[367998601,1750989040584,-1190.85,0.00020355,2]
[367998603,1750989040593,-460.0,0.00020355,2]
[367998605,1750989040602,-460.0,0.00020355,2]
[367998607,1750989040612,-687.22,0.00020355,2]
[367998609,1750989040621,-460.0,0.00020355,2]
[367998611,1750989040632,-460.0,0.00020355,2]
[367998613,1750989040641,-669.92,0.00020355,2]
[367998615,1750989040650,-460.0,0.00020355,2]
[367998617,1750989040660,-1077.08,0.00020355,2]
[367998619,1750989040669,-493.99,0.00020355,2]
[367998621,1750989040678,-466.20470745,0.00020355,2]
[367998623,1750989040687,-460.0,0.00020355,2]
[367998625,1750989040697,-460.0,0.00020355,2]
[367998627,1750989040706,-460.0,0.00020355,2]
[367998629,1750989040716,-151.0,0.00020355,2]
[367998631,1750989040725,-460.0,0.00020355,2]
[367998633,1750989040734,-1386.2,0.00020355,2]
[367998635,1750989040743,-646.42,0.00020355,2]
[367998637,1750989040753,-460.0,0.00020355,2]
[367998639,1750989040762,-151.0,0.00020356,2]
[367998641,1750989040771,-151.0,0.00020356,2]
[367998643,1750989040780,-152.006139,0.00020356,2]
[367998644,1750989040790,-151.0,0.00020356,2]
[367998646,1750989040799,-151.0,0.00020356,2]
[367998648,1750989040808,-151.0,0.00020356,2]
[367998650,1750989040818,-151.0,0.00020356,2]
[367998652,1750989040827,-197.376706,0.00020356,2]
[367998654,1750989040836,-197.376706,0.00020356,2]
[367998656,1750989040846,-151.0,0.00020356,2]
[367998658,1750989040855,-151.0,0.00020356,2]
[367998661,1750989040865,-151.0,0.00020356,2]
[367998662,1750989040874,-151.0,0.00020356,2]
[367998664,1750989040883,-608.54544,0.00020356,2]
[367998666,1750989040892,-608.54544,0.00020356,2]
[367998668,1750989040903,-151.0,0.00020356,2]
[367998670,1750989040912,-161.467374,0.00020356,2]
[367998672,1750989040921,-161.467374,0.00020356,2]
[367998674,1750989040930,-151.0,0.00020356,2]
[367998675,1750989040939,-151.0,0.00020357,2]
[367998676,1750989040948,-151.0,0.00020357,2]
[367998677,1750989040958,-151.0,0.00020357,2]
[367998678,1750989040966,-151.0,0.00020357,2]
[367998679,1750989040975,-229.299007,0.00020357,2]
[367998680,1750989040986,-229.299007,0.00020357,2]
[367998681,1750989040996,-460.0,0.00020358,2]
[367998682,1750989041005,-460.0,0.00020358,2]
[367998683,1750989041014,-151.0,0.00020358,2]
[367998684,1750989041023,-222.032485,0.00020358,2]
[367998685,1750989041033,-222.032485,0.00020358,2]
[367998686,1750989041042,-151.0,0.00020359,2]
[367998687,1750989041051,-324.0,0.00020396,2]
[367998688,1750989041060,-151.0,0.000204,4]
[367998689,1750989041069,-151.0,0.000204,4]
[367998690,1750989041079,-460.0,0.00020459,2]
[367998691,1750989041088,-460.0,0.00020459,2]
[367998692,1750989041097,-153.033212,0.00020459,2]
[367998693,1750989041107,-460.0,0.00020459,2]
[367998694,1750989041116,-2761.15,0.00020459,2]
[367998695,1750989041125,-665.43,0.00020459,2]
[367998696,1750989041134,-1688.09,0.00020459,2]
[367998697,1750989041143,-357.79835496,0.00020459,2]
[367998698,1750989041152,-5139.36,0.00020459,2]
[367998700,1750989041161,-1717.62,0.00020459,2]
[367998702,1750989041170,-460.0,0.00020459,2]
[367998704,1750989041179,-151.0,0.0002046,2]
[367998706,1750989041188,-151.0,0.0002046,2]
[367998722,1750989041332,-151.0,0.00020461,2]
[367998725,1750989041342,-151.0,0.00020461,2]
[367998727,1750989041351,-9260.03097687,0.000205,2]
[367998729,1750989041360,-151.322577,0.000205,2]
[367998731,1750989041369,-151.0,0.000205,2]
[367998733,1750989041379,-151.0,0.000205,4]
[367998735,1750989041388,-7363.35940528,0.00020521,3]
[367998736,1750989041398,-195.52123,0.00020521,2]
[367998738,1750989041407,-195.52123,0.00020521,2]
[367998740,1750989041417,-1407.067641,0.00020521,2]
[367998742,1750989041426,-1407.067641,0.00020521,2]
[367998745,1750989041436,-268.31263676,0.00020531,2]
[367998747,1750989041446,-460.0,0.00020531,2]
[367998749,1750989041456,-324.0,0.00020537,2]
[367998751,1750989041469,-460.0,0.00020547,2]
[367998753,1750989041479,-485.61,0.00020547,2]
[367998755,1750989041488,-515.69,0.00020547,2]
[367998757,1750989041497,-682.25,0.00020547,2]
[367998759,1750989041508,-460.0,0.00020547,2]
[367998761,1750989041518,-592.74,0.00020547,2]
[367998763,1750989041527,-2435.99,0.00020547,2]
[367998765,1750989041537,-460.0,0.00020547,2]
[367998767,1750989041550,-2999.72,0.00020547,2]
[367998769,1750989041560,-272.0,0.00020575,2]
[367998770,1750989041569,-151.0,0.000206,4]
[367998772,1750989041579,-4010.54,0.000206,2]